bitfinex-derivatives/quotes_SOLF0:USTF0_20241216
["timestamp","ask_amount","ask_price","bid_price","bid_amount"]
[1734315507427,2.42,223.53,223.37,2.42]
[1734315507628,2.238,223.49,223.39,2.2388]
[1734315507832,2.42,223.53,223.39,2.2388]
[1734315508241,2.2385,223.44,223.39,2.2388]
[1734315510038,2.2385,223.44,223.4,2.2388]
[1734315511040,2.2385,223.44,223.39,2.2389]
[1734315513837,2.2385,223.43,223.39,2.2389]
[1734315514633,2.2384,223.45,223.36,3.9141]
[1734315514839,1.5343,223.55,223.36,3.9141]
[1734315515143,9.43882718,223.53,223.38,9.43882718]
[1734315515841,2.238,223.49,223.41,2.2387]
[1734315516145,2.42,223.49,223.41,2.2387]
[1734315517135,2.42,223.49,223.36,3.9141]
[1734315517346,2.42,223.49,223.39,2.2389]
[1734315517541,2.42,223.49,223.36,3.9141]
[1734315519443,2.2385,223.43,223.38,2.239]
[1734315520545,2.42,223.49,223.36,3.9141]
[1734315520746,2.2387,223.42,223.37,2.2391]
[1734315521145,2.42,223.49,223.35,10.92282718]
[1734315521340,9.43882718,223.44,223.33,1.4418]
[1734315521549,2.42,223.43,223.33,1.4418]
[1734315522047,2.239,223.38,223.33,7.4936519]
[1734315522246,6.0518519,223.39,223.28,2.9784]
[1734315522444,6.0518519,223.39,223.31,6.0518519]
[1734315522638,2.2393,223.36,223.31,6.0518519]
[1734315523249,6.0518519,223.39,223.31,6.0518519]
[1734315523749,6.0518519,223.39,223.3,2.2398]
[1734315523944,2.2389,223.4,223.3,2.2398]
[1734315524142,9.456108,223.42,223.3,2.2398]
[1734315524347,9.456108,223.42,223.31,2.2397]
[1734315524847,2.2393,223.36,223.31,2.2397]
[1734315525240,2.42,223.38,223.29,2.2399]
[1734315526252,2.2398,223.31,223.27,0.24051]
[1734315526546,2.42,223.33,223.27,0.24051]
[1734315526748,9.456108,223.36,223.27,0.24051]
[1734315526749,2.2398,223.31,223.27,0.24051]
[1734315526945,2.42,223.32,223.27,0.24051]
[1734315527854,4.6597,223.32,223.27,0.24051]
[1734315528249,2.2399,223.3,223.27,0.24051]
[1734315529547,2.42,223.32,223.27,0.24051]
[1734315529850,4.6597,223.32,223.27,2.48061]
[1734315530045,2.2397,223.32,223.27,2.48061]
[1734315530447,2.9913,223.37,223.27,0.24051]
[1734315530653,2.42,223.4,223.27,9.696618]
[1734315530852,2.42,223.41,223.27,9.696618]
[1734315531048,9.456108,223.44,223.3,9.456108]
[1734315531255,2.42,223.43,223.31,2.42]
[1734315531450,1.5013,223.45,223.31,2.42]
[1734315531645,3.9213,223.45,223.31,2.42]
[1734315531851,2.2387,223.42,223.35,2.2393]
[1734315532153,2.2387,223.42,223.31,2.42]
[1734315532350,2.2387,223.42,223.3,9.456108]
[1734315532549,2.2387,223.42,223.32,2.42]
[1734315532854,2.2387,223.41,223.35,2.2393]
[1734315533255,2.2387,223.41,223.36,2.2392]
[1734315533749,3.9213,223.45,223.32,2.42]
[1734315533954,2.42,223.45,223.33,9.456108]
[1734315535160,2.2385,223.44,223.38,2.239]
[1734315536553,13.418208,223.47,223.36,2.2392]
[1734315537457,13.418208,223.47,223.34,2.2393]
[1734315537458,2.2389,223.4,223.34,2.2393]
[1734315538153,2.42,223.42,223.33,2.2395]
[1734315538655,2.42,223.42,223.35,2.2392]
[1734315538855,2.42,223.42,223.31,2.42]
[1734315539053,2.2385,223.44,223.33,9.456108]
[1734315540560,2.2385,223.44,223.39,2.2389]
[1734315540954,3.7803,223.47,223.36,11.876108]
[1734315541156,2.2382,223.47,223.41,2.2387]
[1734315541864,2.2383,223.46,223.41,2.2387]
[1734315543459,11.876108,223.5,223.39,2.2389]
[1734315544563,2.2385,223.44,223.4,2.2388]
[1734315546461,2.2387,223.42,223.34,2.42]
[1734315546757,2.2387,223.42,223.35,6.04840499]
[1734315547263,2.2387,223.42,223.38,2.239]
[1734315547453,2.2385,223.44,223.38,2.239]
[1734315547760,2.42,223.45,223.39,6.04840499]
[1734315548061,2.2382,223.46,223.39,6.04840499]
[1734315548558,2.42,223.49,223.35,6.04840499]
[1734315548559,6.04840499,223.43,223.35,6.04840499]
[1734315548859,6.04840499,223.43,223.31,2.42]
[1734315549057,6.04840499,223.43,223.35,6.04840499]
[1734315550656,2.2386,223.42,223.37,2.2391]
[1734315551160,6.04840499,223.43,223.35,6.04840499]
[1734315552056,2.42,223.44,223.37,6.04840499]
[1734315552253,2.42,223.44,223.39,6.04840499]
[1734315552556,6.04840499,223.45,223.39,6.04840499]
[1734315552753,8.28680499,223.45,223.4,2.2387]
[1734315555868,8.28680499,223.45,223.37,6.04840499]
[1734315555869,2.2385,223.44,223.37,6.04840499]
[1734315556071,6.04840499,223.45,223.37,6.04840499]
[1734315556266,2.2383,223.46,223.41,2.2386]
[1734315556467,6.04840499,223.47,223.39,6.04840499]
[1734315557671,2.2383,223.45,223.4,2.2388]
[1734315557868,6.04840499,223.47,223.39,6.04840499]
[1734315558167,2.2383,223.46,223.41,2.2387]
[1734315558873,2.2383,223.46,223.42,2.2386]
[1734315559078,6.04840499,223.47,223.42,2.2386]
[1734315559371,2.42,223.5,223.42,2.2386]
[1734315559574,2.2381,223.47,223.42,2.2386]
[1734315560868,1.4937,223.53,223.45,6.04840499]
[1734315561366,2.2376,223.53,223.48,2.2379]
[1734315561667,6.04840499,223.54,223.47,6.04840499]
[1734315562567,6.04840499,223.54,223.49,2.2379]
[1734315563067,6.04840499,223.56,223.48,6.04840499]
[1734315563469,6.04840499,223.54,223.46,2.42]
[1734315563663,2.42,223.58,223.48,6.04840499]
[1734315563870,6.04840499,223.58,223.5,6.04840499]
[1734315564071,1.5562,223.6,223.5,6.04840499]
[1734315564270,6.04840499,223.59,223.52,8.28600499]
[1734315564471,2.2368,223.6,223.52,6.04840499]
[1734315565372,2.2369,223.59,223.55,2.2373]
[1734315565575,6.04840499,223.59,223.52,6.04840499]
[1734315565769,6.04840499,223.59,223.5,2.42]
[1734315566073,2.42,223.62,223.52,2.2376]
[1734315566074,8.28550499,223.57,223.52,2.2376]
[1734315567977,2.237,223.59,223.54,2.2374]
[1734315568273,6.04840499,223.6,223.51,6.04840499]
[1734315568675,8.28520499,223.6,223.55,2.2373]
[1734315569066,6.04840499,223.62,223.53,6.04840499]
[1734315569272,1.5156,223.65,223.58,2.237]
[1734315569471,7.56400499,223.65,223.58,2.237]
[1734315569972,7.56400499,223.65,223.57,6.04840499]
[1734315570170,6.04840499,223.65,223.57,6.04840499]
[1734315570571,8.28540499,223.59,223.49,2.2379]
[1734315570767,6.04840499,223.59,223.51,6.04840499]
[1734315571277,6.04840499,223.59,223.54,2.2374]
[1734315571470,2.2368,223.6,223.54,2.2374]
[1734315571974,6.04840499,223.61,223.56,2.2372]
[1734315573175,8.28510499,223.61,223.56,2.2372]
[1734315573979,2.2367,223.61,223.56,2.2372]
[1734315575475,3.9603,223.64,223.5,1.4243]
[1734315576180,2.2367,223.62,223.5,1.4243]
[1734315576372,3.9603,223.64,223.5,1.4243]
[1734315577274,2.2368,223.61,223.56,2.2372]
[1734315578878,2.237,223.59,223.5,1.4243]
[1734315579288,2.42,223.59,223.47,2.42]
[1734315579573,2.2373,223.55,223.47,2.42]
[1734315579978,2.2373,223.55,223.49,2.2379]
[1734315580980,2.2373,223.55,223.5,2.2378]
[1734315581481,2.2372,223.56,223.47,2.42]
[1734315582081,2.2372,223.56,223.5,2.2378]
[1734315582277,2.2372,223.56,223.47,2.42]
[1734315582983,2.2372,223.56,223.51,2.2377]
[1734315585482,2.2374,223.55,223.5,2.2378]
[1734315586683,2.42,223.59,223.47,2.42]
[1734315586885,2.2372,223.56,223.51,2.2377]
[1734315590889,2.2374,223.55,223.51,2.2377]
[1734315591093,2.2374,223.55,223.46,13.25272311]
[1734315591891,2.2374,223.55,223.51,2.2377]
[1734315597089,4.6371,223.58,223.52,8.27960466]
[1734315597290,4.6371,223.58,223.52,6.04210466]
[1734315597791,2.2372,223.57,223.53,2.2375]
[1734315598185,2.4,223.58,223.52,6.04210466]
[1734315598594,2.4,223.58,223.51,6.04210466]
[1734315599083,2.2373,223.56,223.52,2.2375]
[1734315599282,2.4,223.58,223.51,6.04210466]
[1734315599490,2.4,223.58,223.51,6.9369192]
[1734315599790,4.6371,223.58,223.53,2.2375]
[1734315600186,1.5403,223.64,223.51,6.9369192]
[1734315600386,1.5403,223.64,223.55,2.2373]
[1734315600387,2.4,223.63,223.55,2.2373]
[1734315600582,6.04210466,223.6,223.52,0.89477451]
[1734315600784,2.2371,223.58,223.52,3.13237451]
[1734315600984,8.44210466,223.6,223.53,6.04210466]
[1734315601493,6.04210466,223.6,223.53,6.04210466]
[1734315601891,1.5403,223.64,223.57,6.04210466]
[1734315602091,1.5403,223.64,223.52,0.89477451]
[1734315602092,81.62568019,223.69,223.61,6.04210466]
[1734315602293,84.02568019,223.69,223.63,6.04210466]
[1734315602591,75.58357553,223.69,223.63,6.04210466]
[1734315602990,2.2361,223.67,223.63,6.04210466]
[1734315604691,2.236,223.68,223.63,6.04210466]
[1734315605486,2.236,223.68,223.63,8.27860466]
[1734315605994,2.236,223.68,223.65,6.04210466]
[1734315607390,2.4,223.77,223.67,6.04210466]
[1734315607599,7.50770466,223.78,223.71,6.04210466]
[1734315607901,1.4656,223.78,223.71,6.04210466]
[1734315608290,1.4656,223.78,223.73,6.04210466]
[1734315608491,2.4,223.79,223.73,6.04210466]
[1734315608994,2.235,223.79,223.73,6.04210466]
[1734315609195,7.53790466,223.81,223.73,6.04210466]
[1734315609793,2.2352,223.77,223.73,6.04210466]
[1734315609996,2.2352,223.77,223.7,2.2357]
[1734315610198,2.2352,223.77,223.73,6.04210466]
[1734315611901,1.4958,223.81,223.75,6.04210466]
[1734315612107,6.04210466,223.83,223.75,6.04210466]
[1734315612396,2.2348,223.81,223.75,6.04210466]
[1734315612610,2.4,223.86,223.77,6.04210466]
[1734315612909,6.04210466,223.86,223.79,6.04210466]
[1734315613409,2.2346,223.83,223.79,6.04210466]
[1734315613903,9.86530466,223.89,223.78,2.235]
[1734315614211,9.86530466,223.89,223.8,6.04210466]
[1734315615005,2.2344,223.84,223.8,6.04210466]
[1734315615410,1.4232,223.89,223.82,6.04210466]
[1734315615710,2.2343,223.86,223.82,6.04210466]
[1734315615906,1.4232,223.89,223.82,6.04210466]
[1734315616101,2.2342,223.87,223.82,6.04210466]
[1734315616807,2.2342,223.87,223.82,8.27670466]
[1734315617811,2.2342,223.87,223.84,6.04210466]
[1734315618511,2.234,223.88,223.84,6.04210466]
[1734315618706,6.04210466,223.93,223.84,8.27650466]
[1734315618908,123.03710401,223.94,223.88,6.04210466]
[1734315619104,2.2337,223.92,223.88,6.04210466]
[1734315619310,123.03710401,223.94,223.86,2.2342]
[1734315619605,2.2339,223.89,223.85,6.04210466]
[1734315619802,6.04210466,223.93,223.85,6.04210466]
[1734315620905,123.03710401,223.94,223.79,2.9886]
[1734315620906,2.2343,223.86,223.82,2.4]
[1734315621107,2.2343,223.86,223.83,6.04210466]
[1734315623310,2.2343,223.86,223.79,2.9886]
[1734315623311,6.04210466,223.91,223.79,2.9886]
[1734315623616,2.2345,223.84,223.81,6.04210466]
[1734315624113,6.04210466,223.89,223.81,6.04210466]
[1734315624309,2.2343,223.85,223.81,6.04210466]
[1734315625207,1.5523,223.93,223.83,6.04210466]
[1734315625411,1.5523,223.93,223.86,6.04210466]
[1734315626107,6.04210466,223.92,223.84,6.04210466]
[1734315627212,2.2342,223.87,223.84,6.04210466]
[1734315627414,1.5523,223.93,223.78,6.04210466]
[1734315627415,6.04210466,223.86,223.78,6.04210466]
[1734315627608,6.04210466,223.86,223.76,6.04210466]
[1734315628319,2.2347,223.81,223.76,8.27730466]
[1734315628513,2.2347,223.81,223.75,2.4]
[1734315628514,2.4,223.87,223.8,6.04210466]
[1734315628714,8.44210466,223.88,223.8,6.04210466]
[1734315629016,8.44210466,223.88,223.78,6.04210466]
[1734315629215,8.44210466,223.88,223.8,6.04210466]
[1734315629712,2.2345,223.84,223.8,6.04210466]
[1734315629918,8.44210466,223.88,223.8,6.04210466]
[1734315630218,2.2346,223.83,223.8,6.04210466]
[1734315630421,6.04210466,223.86,223.77,0.89377485]
[1734315630717,6.04210466,223.86,223.77,6.93587951]
[1734315630918,2.2348,223.81,223.77,6.93587951]
[1734315631514,2.2349,223.8,223.77,6.93587951]
[1734315634123,2.235,223.78,223.77,0.89377485]
[1734315637624,8.27710466,223.78,223.77,0.89377485]
[1734315637821,10.67710466,223.78,223.77,0.89377485]
[1734315638622,8.44210466,223.78,223.64,2.4]
[1734315638817,6.04210466,223.76,223.64,2.4]
[1734315639125,6.04210466,223.74,223.65,6.04210466]
[1734315639327,2.4,223.73,223.65,6.04210466]
[1734315640228,2.2362,223.67,223.62,4.5975]
[1734315640428,2.2362,223.67,223.64,6.04210466]
[1734315640923,6.04210466,223.7,223.62,9.13780466]
[1734315641119,6.04210466,223.7,223.62,7.58970466]
[1734315643234,2.4,223.73,223.64,6.04210466]
[1734315643427,6.04210466,223.72,223.64,6.04210466]
[1734315643628,6.04210466,223.7,223.62,7.58970466]
[1734315644230,6.04210466,223.7,223.62,6.04210466]
[1734315644529,6.04210466,223.7,223.6,6.04210466]
[1734315644727,6.04210466,223.68,223.6,6.04210466]
[1734315644922,2.2366,223.63,223.6,6.04210466]
[1734315645126,2.4,223.68,223.6,6.04210466]
[1734315645525,2.2365,223.64,223.6,6.04210466]
[1734315645728,2.4,223.68,223.6,6.04210466]
[1734315646427,2.2365,223.64,223.62,6.04210466]
[1734315646628,2.4,223.68,223.62,6.04210466]
[1734315646827,2.236,223.69,223.64,6.04210466]
[1734315647232,2.4,223.72,223.64,6.04210466]
[1734315648432,6.04210466,223.71,223.62,6.04210466]
[1734315649022,2.2363,223.66,223.62,6.04210466]
[1734315651023,2.2361,223.68,223.62,8.27870466]
[1734315651225,6.04210466,223.71,223.62,8.27870466]
[1734315651525,2.2366,223.63,223.6,2.9356]
[1734315651726,6.04210466,223.69,223.61,6.04210466]
[1734315651932,2.4,223.72,223.63,6.04210466]
[1734315652131,2.2362,223.68,223.63,6.04210466]
[1734315652426,6.04210466,223.75,223.67,6.04210466]
[1734315652627,7.51430466,223.77,223.69,6.04210466]
[1734315652830,2.2356,223.73,223.69,6.04210466]
[1734315653830,9.91430466,223.77,223.69,6.04210466]
[1734315654136,2.2357,223.72,223.69,6.04210466]
[1734315654337,9.91430466,223.77,223.69,6.04210466]
[1734315655335,2.2354,223.75,223.69,6.04210466]
[1734315655527,9.91430466,223.77,223.69,6.04210466]
[1734315655931,2.2358,223.71,223.69,6.04210466]
[1734315656128,6.04210466,223.75,223.67,6.04210466]
[1734315657435,2.2358,223.71,223.67,6.04210466]
[1734315658429,2.2358,223.71,223.67,8.27820466]
[1734315658629,2.2358,223.71,223.67,6.04210466]
[1734315658827,6.04210466,223.75,223.67,6.04210466]
[1734315659731,6.04210466,223.75,223.69,6.04210466]
[1734315659732,2.2357,223.72,223.69,6.04210466]
[1734315660234,8.44210466,223.77,223.69,6.04210466]
[1734315660439,2.2356,223.73,223.69,8.27800466]
[1734315660634,8.44210466,223.77,223.69,6.04210466]
[1734315661036,2.2357,223.72,223.69,6.04210466]
[1734315663536,2.2359,223.7,223.66,2.2362]
[1734315663738,6.04210466,223.73,223.64,6.04210466]
[1734315664134,6.04210466,223.71,223.64,6.04210466]
[1734315664841,2.2362,223.67,223.64,6.04210466]
[1734315665431,2.2361,223.68,223.64,6.04210466]
[1734315665739,2.4,223.76,223.66,6.04210466]
[1734315665936,2.2351,223.78,223.73,6.04210466]
[1734315666134,6.04210466,223.79,223.73,6.04210466]
[1734315667439,2.2353,223.76,223.73,6.04210466]
[1734315668045,2.2353,223.76,223.71,2.2357]
[1734315668241,3.9188,223.82,223.68,2.8559]
[1734315668539,9.42193935,223.81,223.68,2.8559]
[1734315668942,2.2358,223.71,223.68,2.8559]
[1734315669739,2.2357,223.72,223.68,2.8559]
[1734315670735,2.2355,223.74,223.68,2.8559]
[1734315670941,1.5188,223.82,223.68,12.27783935]
[1734315671142,1.5188,223.82,223.71,9.42193935]
[1734315671343,2.235,223.79,223.74,2.2354]
[1734315671741,2.2351,223.78,223.74,2.2354]
[1734315671942,2.2351,223.78,223.72,2.4]
[1734315671943,2.4,223.84,223.72,4.6356]
[1734315672946,2.2351,223.78,223.73,2.2355]
[1734315673538,9.42193935,223.86,223.72,2.4]
[1734315673539,2.2349,223.8,223.72,2.4]
[1734315673746,1.5088,223.87,223.72,2.4]
[1734315673946,2.4,223.87,223.74,9.42193935]
[1734315674739,2.2347,223.82,223.76,2.2352]
[1734315674944,2.2347,223.82,223.77,2.4]
[1734315675343,2.2347,223.82,223.78,2.235]
[1734315675545,2.2346,223.83,223.78,2.235]
[1734315676046,2.2347,223.82,223.77,4.6351]
[1734315677443,2.4,223.84,223.71,2.4]
[1734315677739,9.42193935,223.82,223.71,2.4]
[1734315678145,2.2354,223.75,223.71,2.4]
[1734315678347,9.42193935,223.82,223.71,2.4]
[1734315679246,2.2354,223.74,223.71,2.4]
[1734315679444,2.2354,223.74,223.69,2.2359]
[1734315679838,2.2354,223.74,223.7,2.2358]
[1734315680446,2.2354,223.74,223.68,14.67783935]
[1734315680643,2.2357,223.72,223.68,2.8559]
[1734315683042,2.4,223.79,223.69,2.2359]
[1734315683243,2.4,223.79,223.68,2.8559]
[1734315683646,2.2354,223.74,223.68,5.0918]
[1734315685146,2.2354,223.74,223.68,2.8559]
[1734315685350,2.2354,223.74,223.69,2.2359]
[1734315686157,2.4,223.79,223.68,12.27783935]
[1734315687356,2.4,223.79,223.68,14.51383935]
[1734315687558,2.4,223.79,223.68,2.8559]
[1734315688359,2.2356,223.73,223.68,5.0919]
[1734315689159,2.2353,223.76,223.71,2.2357]
[1734315689461,2.4,223.82,223.71,9.42193935]
[1734315689653,2.4,223.82,223.72,2.2356]
[1734315689654,2.2351,223.78,223.72,2.2356]
[1734315690158,2.2351,223.78,223.71,11.82193935]
[1734315690359,2.2351,223.78,223.73,2.2355]
[1734315691563,2.2351,223.78,223.74,2.2354]
[1734315691759,2.2349,223.8,223.74,2.2354]
[1734315692063,2.9444,223.87,223.77,2.2351]
[1734315692064,2.4,223.86,223.77,2.2351]
[1734315692465,2.4,223.86,223.76,2.4]
[1734315692665,1.5633,223.88,223.79,2.2349]
[1734315693164,2.2342,223.87,223.81,2.2347]
[1734315693564,2.4,223.92,223.8,9.42193935]
[1734315694060,2.2345,223.84,223.8,9.42193935]
[1734315694271,2.2345,223.84,223.79,2.2349]
[1734315695371,1.4604,223.93,223.77,16.20533935]
[1734315695567,3.8604,223.93,223.8,9.42193935]
[1734315696374,2.4,223.92,223.8,9.42193935]
[1734315696671,2.2342,223.87,223.82,2.2346]
[1734315696861,11.82193935,223.92,223.77,16.20533935]
[1734315697365,11.82193935,223.92,223.78,2.235]
[1734315698170,2.2343,223.86,223.8,2.2348]
[1734315698670,2.2344,223.85,223.8,2.2348]
[1734315700166,2.2342,223.87,223.82,2.2346]
[1734315700674,2.2344,223.85,223.8,2.2348]
[1734315700868,2.4,223.9,223.77,16.20533935]
[1734315701266,2.4,223.9,223.79,2.2349]
[1734315701768,2.4,223.9,223.77,4.3834]
[1734315701969,1.4888,223.89,223.77,2.9736]
[1734315702566,2.2348,223.81,223.77,2.9736]
[1734315703072,2.4,223.84,223.75,9.42193935]
[1734315703870,2.4,223.88,223.75,9.42193935]
[1734315704377,2.2344,223.85,223.75,9.42193935]
[1734315705470,2.2344,223.85,223.79,2.2349]
[1734315705665,2.2345,223.84,223.79,2.2349]
[1734315706671,2.4,223.88,223.79,2.2349]
[1734315706876,2.2346,223.83,223.79,2.2349]
[1734315708672,2.2349,223.8,223.75,2.2353]
[1734315708981,2.4,223.88,223.75,2.2353]
[1734315709472,2.2349,223.8,223.75,2.2353]
[1734315709674,2.4,223.88,223.74,2.2354]
[1734315710575,2.2351,223.79,223.74,2.2354]
[1734315710770,2.4,223.83,223.71,6.8772]
[1734315711571,2.4,223.83,223.72,2.2356]
[1734315711980,2.4,223.83,223.71,6.8772]
[1734315712179,2.2352,223.78,223.73,2.2355]
[1734315712580,2.4,223.83,223.73,2.2355]
[1734315713683,2.4,223.83,223.71,5.1913]
[1734315713886,11.82193935,223.83,223.71,5.1913]
[1734315714981,11.82193935,223.83,223.69,2.4]
[1734315715882,2.2356,223.73,223.69,2.4]
[1734315716080,11.82193935,223.83,223.69,2.4]
[1734315716483,11.82193935,223.83,223.68,2.236]
[1734315717481,2.2357,223.72,223.68,2.236]
[1734315719986,2.2357,223.72,223.69,6.03196032]
[1734315720987,2.2357,223.72,223.68,2.236]
[1734315721186,2.2357,223.72,223.69,6.03196032]
[1734315722186,6.03196032,223.75,223.66,3.29421443]
[1734315722393,6.03196032,223.75,223.66,9.32617475]
[1734315722790,6.03196032,223.77,223.7,6.03196032]
[1734315723282,2.2357,223.72,223.7,6.03196032]
[1734315723481,2.2357,223.72,223.68,6.03196032]
[1734315723889,2.2358,223.71,223.66,0.89421443]
[1734315724088,6.03196032,223.73,223.66,0.89421443]
[1734315724993,6.03196032,223.73,223.66,6.92617475]
[1734315725187,2.2361,223.69,223.66,6.92617475]
[1734315725390,6.03196032,223.73,223.66,6.92617475]
[1734315726893,2.2361,223.69,223.66,6.92617475]
[1734315727494,1.5514,223.77,223.66,0.89421443]
[1734315727495,6.03196032,223.71,223.66,0.89421443]
[1734315727696,6.03196032,223.69,223.66,0.89421443]
[1734315728200,2.4,223.72,223.66,0.89421443]
[1734315728402,2.4,223.72,223.66,6.92617475]
[1734315728792,2.2361,223.68,223.66,6.92617475]
[1734315730302,2.2362,223.67,223.66,0.89421443]
[1734315732998,8.43196032,223.72,223.66,0.89421443]
[1734315733302,8.43196032,223.72,223.64,6.03196032]
[1734315733695,2.4,223.72,223.64,8.26846032]
[1734315733893,2.4,223.72,223.64,6.03196032]
[1734315735397,2.236,223.69,223.65,2.2363]
[1734315736100,2.236,223.69,223.64,8.26846032]
[1734315736305,2.236,223.69,223.64,2.2365]
[1734315738405,6.03196032,223.71,223.63,6.03196032]
[1734315738605,2.2359,223.71,223.63,6.03196032]
[1734315738899,6.03196032,223.76,223.69,2.2359]
[1734315739602,2.2356,223.73,223.68,2.2361]
[1734315740008,2.4,223.78,223.62,2.4]
[1734315740009,6.03196032,223.72,223.62,2.4]
[1734315740300,6.03196032,223.72,223.63,6.03196032]
[1734315740606,6.03196032,223.7,223.63,6.03196032]
[1734315740802,6.03196032,223.66,223.45,46.5]
[1734315741000,6.03196032,223.63,223.58,1.4601]
[1734315741301,6.03196032,223.63,223.52,2.4]
[1734315741302,6.03196032,223.59,223.52,6.03196032]
[1734315741902,2.2372,223.57,223.52,8.26966032]
[1734315742205,6.03196032,223.59,223.52,6.03196032]
[1734315742506,6.03196032,223.57,223.5,8.43196032]
[1734315742705,6.03196032,223.55,223.47,1.4656]
[1734315742902,6.03196032,223.55,223.47,7.49756032]
[1734315744203,2.4,223.56,223.47,1.4656]
[1734315744505,2.2377,223.52,223.46,1.4851]
[1734315745805,2.4,223.56,223.44,2.4]
[1734315745806,2.2379,223.5,223.44,2.4]
[1734315746206,2.4,223.56,223.44,2.4]
[1734315746402,2.238,223.49,223.44,2.4]
[1734315746609,9.44362954,223.55,223.39,10.93322954]
[1734315746803,9.44362954,223.55,223.4,2.4]
[1734315747009,9.44362954,223.55,223.42,2.2387]
[1734315747706,9.44362954,223.55,223.43,2.2385]
[1734315749511,2.238,223.5,223.43,2.2385]
[1734315749806,9.44362954,223.55,223.43,2.2385]
[1734315750010,2.2379,223.5,223.43,2.2385]
[1734315750213,2.2379,223.5,223.44,2.2384]
[1734315751705,2.2378,223.52,223.4,2.4]
[1734315751913,1.5249,223.57,223.45,9.44362954]
[1734315752110,2.4,223.58,223.46,1.5627]
[1734315752304,2.4,223.58,223.46,3.9627]
[1734315753311,2.2373,223.56,223.5,2.2378]
[1734315754909,2.4,223.58,223.46,3.9627]
[1734315755111,2.2377,223.52,223.46,6.2009]
[1734315755311,2.2377,223.52,223.46,3.9627]
[1734315756008,2.4,223.58,223.46,3.9627]
[1734315756211,2.4,223.58,223.46,1.5627]
[1734315757214,2.4,223.58,223.46,3.801]
[1734315758209,9.44362954,223.56,223.46,3.801]
[1734315758413,2.2377,223.52,223.46,3.801]
[1734315759707,2.2377,223.52,223.46,2.2383]
[1734315761408,2.2377,223.52,223.45,2.4]
[1734315761409,2.4,223.53,223.41,10.33884461]
[1734315761614,11.84362954,223.53,223.41,0.89521507]
[1734315761812,2.2381,223.48,223.41,3.13391507]
[1734315762015,11.84362954,223.53,223.41,0.89521507]
[1734315762527,2.2381,223.48,223.42,2.2386]
[1734315763022,2.2384,223.45,223.41,0.89521507]
[1734315763420,9.44362954,223.5,223.41,0.89521507]
[1734315763721,2.2383,223.47,223.41,3.13401507]
[1734315764515,9.44362954,223.5,223.41,0.89521507]
[1734315764721,2.2387,223.42,223.41,0.89521507]
[1734315765121,2.4,223.47,223.41,0.89521507]
[1734315765320,2.2383,223.46,223.41,0.89521507]
[1734315765524,2.4,223.47,223.41,0.89521507]
[1734315765717,2.2387,223.42,223.41,0.89521507]
[1734315765918,2.2387,223.42,223.35,2.4]
[1734315766113,2.4,223.47,223.33,0.20619]
[1734315766316,11.84362954,223.47,223.33,0.20619]
[1734315766516,11.84362954,223.47,223.34,2.4]
[1734315766719,11.84362954,223.47,223.33,0.20619]
[1734315766921,1.5365,223.46,223.35,2.2394]
[1734315767116,1.5365,223.46,223.33,0.20619]
[1734315767117,9.44362954,223.44,223.33,0.20619]
[1734315768522,9.44362954,223.44,223.33,2.44569]
[1734315768723,9.44362954,223.44,223.33,0.20619]
[1734315769821,1.4953,223.43,223.33,0.20619]
[1734315770032,2.4,223.42,223.33,0.20619]
[1734315772419,3.9422,223.42,223.33,0.20619]
[1734315774622,13.38582954,223.42,223.33,0.20619]
[1734315775922,3.9422,223.42,223.33,0.20619]
[1734315780831,6.05317664,223.34,223.33,0.20619]
[1734315781124,8.45317664,223.34,223.23,6.05317664]
[1734315781327,2.2401,223.29,223.24,2.2405]
[1734315781529,2.2401,223.29,223.24,8.29367664]
[1734315783438,6.05317664,223.26,223.14,2.4]
[1734315783737,6.05317664,223.23,223.14,2.4]